[Event "Live Chess"]
[Site "Chess.com"]
[Date "2023.05.21"]
[Round "-"]
[White "Dhaydon19"]
[Black "LiamBellwood"]
[Result "1-0"]
[WhiteElo "2689"]
[BlackElo "1929"]
[TimeControl "300"]
[EndTime "8:33:53 PDT"]
[Termination "Dhaydon19 won by resignation"]

1. d4 {[%clk 0:04:58.8]} 1... e6 {[%clk 0:04:59.4]} 2. Nf3 {[%clk 0:04:56.1]}
2... f5 {[%clk 0:04:58.6]} 3. g3 {[%clk 0:04:55.4]} 3... Nf6 {[%clk 0:04:58.1]}
4. Bg2 {[%clk 0:04:55]} 4... Be7 {[%clk 0:04:57.8]} 5. O-O {[%clk 0:04:54.6]}
5... O-O {[%clk 0:04:57.6]} 6. c4 {[%clk 0:04:54.1]} 6... d6 {[%clk 0:04:57.2]}
7. Nc3 {[%clk 0:04:53]} 7... a5 {[%clk 0:04:56.9]} 8. Qc2 {[%clk 0:04:52.2]}
8... Nc6 {[%clk 0:04:55.8]} 9. e4 {[%clk 0:04:50.9]} 9... Nb4 {[%clk 0:04:55]}
10. Qe2 {[%clk 0:04:49.8]} 10... fxe4 {[%clk 0:04:54.9]} 11. Nxe4 {[%clk
0:04:49.3]} 11... Nxe4 {[%clk 0:04:53.3]} 12. Qxe4 {[%clk 0:04:48.5]} 12... e5
{[%clk 0:04:53.2]} 13. dxe5 {[%clk 0:04:39.6]} 13... Bf5 {[%clk 0:04:52.1]} 14.
Qe2 {[%clk 0:04:36.5]} 14... Bd3 {[%clk 0:04:45.1]} 15. Qd2 {[%clk 0:04:25.8]}
15... Bxf1 {[%clk 0:04:41.7]} 16. Kxf1 {[%clk 0:04:24.6]} 16... dxe5 {[%clk
0:04:36.4]} 17. a3 {[%clk 0:04:21.8]} 17... Qxd2 {[%clk 0:03:50]} 18. Bxd2
{[%clk 0:04:19.1]} 18... Nd3 {[%clk 0:03:46.7]} 19. Be3 {[%clk 0:04:17.5]} 19...
Nxb2 {[%clk 0:03:34.1]} 20. Nd2 {[%clk 0:04:16.1]} 20... Nd3 {[%clk 0:03:27]}
21. Bxb7 {[%clk 0:04:13.8]} 21... Rab8 {[%clk 0:03:21.3]} 22. Bd5+ {[%clk
0:04:08.7]} 22... Kh8 {[%clk 0:03:20.7]} 23. Ke2 {[%clk 0:04:07.5]} 23... Nc5
{[%clk 0:03:12.5]} 24. Ra2 {[%clk 0:04:06.3]} 24... Nb3 {[%clk 0:03:03.6]} 25.
Nf3 {[%clk 0:04:01.4]} 25... Bc5 {[%clk 0:02:40.5]} 26. Nxe5 {[%clk 0:03:58.2]}
26... Bxe3 {[%clk 0:02:35.4]} 27. Kxe3 {[%clk 0:03:56.6]} 27... Rfe8 {[%clk
0:02:29.9]} 28. f4 {[%clk 0:03:55.3]} 28... Nc5 {[%clk 0:02:04.6]} 29. Kf2
{[%clk 0:03:51.1]} 29... g6 {[%clk 0:01:56.6]} 30. Re2 {[%clk 0:03:41.4]} 30...
Kg7 {[%clk 0:01:52]} 31. Bc6 {[%clk 0:03:35.2]} 31... Re6 {[%clk 0:01:46.5]} 32.
Bb5 {[%clk 0:03:33.6]} 32... Nb3 {[%clk 0:01:32.7]} 33. Nf3 {[%clk 0:03:21]}
33... Rxe2+ {[%clk 0:01:31]} 34. Kxe2 {[%clk 0:03:20.1]} 34... Rd8 {[%clk
0:01:17.8]} 35. Ke3 {[%clk 0:03:16.2]} 35... Nc5 {[%clk 0:01:06.9]} 36. Ne5
{[%clk 0:03:13.4]} 36... Kf6 {[%clk 0:01:03.5]} 37. h4 {[%clk 0:03:11]} 37... h6
{[%clk 0:01:02.3]} 38. Ng4+ {[%clk 0:03:09.2]} 38... Kg7 {[%clk 0:01:00.3]} 39.
Ne5 {[%clk 0:03:08]} 39... Kf6 {[%clk 0:00:56.9]} 40. Bc6 {[%clk 0:03:05.6]}
40... g5 {[%clk 0:00:44.1]} 41. Ng4+ {[%clk 0:03:02.9]} 41... Kg6 {[%clk
0:00:42.5]} 42. f5+ {[%clk 0:02:57.3]} 42... Kxf5 {[%clk 0:00:35.3]} 43. Nxh6+
{[%clk 0:02:56]} 43... Kg6 {[%clk 0:00:35]} 44. hxg5 {[%clk 0:02:55]} 44... Kxg5
{[%clk 0:00:33.4]} 45. Nf7+ {[%clk 0:02:53.7]} 1-0

[Event "Live Chess"]
[Site "Chess.com"]
[Date "2023.05.21"]
[Round "-"]
[White "whatnot126"]
[Black "Bob2pen"]
[Result "1/2-1/2"]
[WhiteElo "2066"]
[BlackElo "1885"]
[TimeControl "300"]
[EndTime "8:34:04 PDT"]
[Termination "Game drawn by repetition"]

1. e4 {[%clk 0:04:59.3]} 1... e6 {[%clk 0:04:58.6]} 2. d4 {[%clk 0:04:58.2]}
2... d5 {[%clk 0:04:57.5]} 3. e5 {[%clk 0:04:57.4]} 3... c5 {[%clk 0:04:56.3]}
4. c3 {[%clk 0:04:57.1]} 4... Nc6 {[%clk 0:04:55.4]} 5. Nf3 {[%clk 0:04:56.7]}
5... Qb6 {[%clk 0:04:54.4]} 6. Bd3 {[%clk 0:04:55.6]} 6... Bd7 {[%clk 0:04:53]}
7. O-O {[%clk 0:04:54.8]} 7... cxd4 {[%clk 0:04:51.8]} 8. cxd4 {[%clk
0:04:54.7]} 8... Nxd4 {[%clk 0:04:51]} 9. Nxd4 {[%clk 0:04:54.2]} 9... Qxd4
{[%clk 0:04:50.1]} 10. Nc3 {[%clk 0:04:53.8]} 10... a6 {[%clk 0:04:48.2]} 11.
Qe2 {[%clk 0:04:52.9]} 11... h5 {[%clk 0:04:46.6]} 12. Rd1 {[%clk 0:04:46.6]}
12... Qg4 {[%clk 0:04:44.8]} 13. f3 {[%clk 0:04:42.9]} 13... Qh4 {[%clk
0:04:43.5]} 14. Be3 {[%clk 0:04:08.2]} 14... Nh6 {[%clk 0:04:40.9]} 15. Bf2
{[%clk 0:04:05.8]} 15... Qg5 {[%clk 0:04:32.9]} 16. h4 {[%clk 0:03:30.4]} 16...
Qd8 {[%clk 0:04:24.5]} 17. f4 {[%clk 0:03:10]} 17... Ng4 {[%clk 0:04:21.6]} 18.
f5 {[%clk 0:02:56.4]} 18... Qc7 {[%clk 0:04:13.3]} 19. Bg3 {[%clk 0:02:50]}
19... Qc5+ {[%clk 0:04:04]} 20. Kh1 {[%clk 0:02:47]} 20... Qe3 {[%clk
0:04:01.9]} 21. fxe6 {[%clk 0:02:31]} 21... Bxe6 {[%clk 0:03:54.5]} 22. Bb5+
{[%clk 0:02:14.3]} 22... axb5 {[%clk 0:03:36.7]} 23. Qxb5+ {[%clk 0:02:12.9]}
23... Bd7 {[%clk 0:03:23.1]} 24. Qxb7 {[%clk 0:01:33.4]} 24... Qa7 {[%clk
0:03:19.7]} 25. Qxa7 {[%clk 0:01:27.7]} 25... Rxa7 {[%clk 0:03:18.1]} 26. Nxd5
{[%clk 0:01:18.6]} 26... Be6 {[%clk 0:03:10.5]} 27. Rac1 {[%clk 0:01:16.5]}
27... Be7 {[%clk 0:03:00]} 28. Nc7+ {[%clk 0:01:10.8]} 28... Kf8 {[%clk
0:02:44.4]} 29. Nxe6+ {[%clk 0:01:08.6]} 29... fxe6 {[%clk 0:02:42.1]} 30. Rc8+
{[%clk 0:01:08]} 30... Kf7 {[%clk 0:02:38.7]} 31. Rf1+ {[%clk 0:01:05.2]} 31...
Kg6 {[%clk 0:02:34.5]} 32. Rxh8 {[%clk 0:01:04.8]} 32... Rxa2 {[%clk 0:02:32.1]}
33. Rb8 {[%clk 0:01:00.9]} 33... Bc5 {[%clk 0:02:16.6]} 34. Rc1 {[%clk
0:00:50.5]} 34... Bd4 {[%clk 0:02:15]} 35. b4 {[%clk 0:00:29.7]} 35... Ra3
{[%clk 0:01:53.5]} 36. Bf4 {[%clk 0:00:26.2]} 36... Nf2+ {[%clk 0:01:50.2]} 37.
Kh2 {[%clk 0:00:24.4]} 37... Ng4+ {[%clk 0:01:48.8]} 38. Kh1 {[%clk 0:00:23.8]}
38... Nf2+ {[%clk 0:01:47.6]} 39. Kh2 {[%clk 0:00:23.5]} 39... Ng4+ {[%clk
0:01:46]} 40. Kh1 {[%clk 0:00:23]} 1/2-1/2

[Event "Live Chess"]
[Site "Chess.com"]
[Date "2023.05.21"]
[Round "-"]
[White "TheAuditer"]
[Black "RichardABates"]
[Result "0-1"]
[WhiteElo "1370"]
[BlackElo "2186"]
[TimeControl "300"]
[EndTime "8:34:09 PDT"]
[Termination "RichardABates won by checkmate"]

1. d4 {[%clk 0:04:56.6]} 1... Nf6 {[%clk 0:04:58.3]} 2. c4 {[%clk 0:04:54.9]}
2... e5 {[%clk 0:04:56]} 3. dxe5 {[%clk 0:04:53.2]} 3... Ne4 {[%clk 0:04:55.2]}
4. Bf4 {[%clk 0:04:46.2]} 4... d6 {[%clk 0:04:53.8]} 5. e3 {[%clk 0:04:40]} 5...
Nc6 {[%clk 0:04:50.4]} 6. exd6 {[%clk 0:04:34.8]} 6... Qf6 {[%clk 0:04:49.2]} 7.
Qc2 {[%clk 0:04:31]} 7... Bf5 {[%clk 0:04:46.1]} 8. d7+ {[%clk 0:04:19.8]} 8...
Kxd7 {[%clk 0:04:42.2]} 9. Bd3 {[%clk 0:04:12.4]} 9... Nb4 {[%clk 0:04:29.9]}
10. Qa4+ {[%clk 0:03:58]} 10... c6 {[%clk 0:04:28.3]} 11. Qb3 {[%clk 0:03:43.1]}
11... Nc5 {[%clk 0:04:22.4]} 12. Bxf5+ {[%clk 0:03:28.2]} 12... Qxf5 {[%clk
0:04:20.6]} 13. Qd1+ {[%clk 0:03:18.7]} 13... Ncd3+ {[%clk 0:04:15]} 14. Kf1
{[%clk 0:03:12.5]} 14... Bd6 {[%clk 0:04:03.9]} 15. Nf3 {[%clk 0:02:42.9]} 15...
Bxf4 {[%clk 0:03:46.1]} 16. exf4 {[%clk 0:02:41.3]} 16... Kc7 {[%clk 0:03:44.3]}
17. a3 {[%clk 0:02:32.8]} 17... Nxb2 {[%clk 0:03:40.9]} 18. Qb3 {[%clk
0:02:19.7]} 18... Nc2 {[%clk 0:03:38.4]} 19. Qxb2 {[%clk 0:02:12]} 19... Qd3+
{[%clk 0:03:36.5]} 20. Kg1 {[%clk 0:02:03.6]} 20... Qd1+ {[%clk 0:03:34.9]} 21.
Ne1 {[%clk 0:01:59.6]} 21... Qxe1# {[%clk 0:03:33.6]} 0-1

[Event "Live Chess"]
[Site "Chess.com"]
[Date "2023.05.21"]
[Round "-"]
[White "TheSmoulderingMaster"]
[Black "Pablo_dmp"]
[Result "0-1"]
[WhiteElo "1659"]
[BlackElo "1853"]
[TimeControl "300"]
[EndTime "8:34:17 PDT"]
[Termination "Pablo_dmp won by resignation"]

1. e4 {[%clk 0:04:58.3]} 1... c5 {[%clk 0:04:58.8]} 2. Nf3 {[%clk 0:04:57.1]}
2... Nc6 {[%clk 0:04:57.3]} 3. d4 {[%clk 0:04:56.2]} 3... cxd4 {[%clk
0:04:56.6]} 4. Nxd4 {[%clk 0:04:55.7]} 4... Nf6 {[%clk 0:04:54.8]} 5. Nc3 {[%clk
0:04:54.4]} 5... e5 {[%clk 0:04:53.7]} 6. Nf5 {[%clk 0:04:52.9]} 6... d5 {[%clk
0:04:51.6]} 7. Nb5 {[%clk 0:04:48.4]} 7... d4 {[%clk 0:04:46]} 8. Bg5 {[%clk
0:04:42.2]} 8... a6 {[%clk 0:04:44.3]} 9. Bxf6 {[%clk 0:04:38.9]} 9... gxf6
{[%clk 0:04:43.8]} 10. Na3 {[%clk 0:04:35.9]} 10... Bxf5 {[%clk 0:04:40.8]} 11.
exf5 {[%clk 0:04:34.6]} 11... Qd7 {[%clk 0:04:40.5]} 12. Bd3 {[%clk 0:04:30.5]}
12... Qd5 {[%clk 0:04:36.8]} 13. O-O {[%clk 0:04:29]} 13... Rg8 {[%clk
0:04:34.6]} 14. f3 {[%clk 0:04:27.8]} 14... Bc5 {[%clk 0:04:27.9]} 15. Be4
{[%clk 0:04:25.8]} 15... Qd7 {[%clk 0:04:21.8]} 16. Nc4 {[%clk 0:04:23]} 16...
Ke7 {[%clk 0:04:13.4]} 17. Kh1 {[%clk 0:04:20.7]} 17... Rg5 {[%clk 0:04:08.9]}
18. a3 {[%clk 0:04:18.6]} 18... Rag8 {[%clk 0:04:06.7]} 19. Rf2 {[%clk 0:04:15]}
19... d3 {[%clk 0:03:54.2]} 20. cxd3 {[%clk 0:04:11.7]} 20... Bxf2 {[%clk
0:03:53]} 21. Qe2 {[%clk 0:04:06.4]} 21... Rxg2 {[%clk 0:03:50]} 22. Ne3 {[%clk
0:03:55]} 22... Rg1+ {[%clk 0:03:46.8]} 0-1

[Event "Live Chess"]
[Site "Chess.com"]
[Date "2023.05.21"]
[Round "-"]
[White "matt1979"]
[Black "ossie57"]
[Result "0-1"]
[WhiteElo "1535"]
[BlackElo "1843"]
[TimeControl "300"]
[EndTime "8:34:23 PDT"]
[Termination "ossie57 won by resignation"]

1. f4 {[%clk 0:04:56.7]} 1... d5 {[%clk 0:04:57]} 2. e3 {[%clk 0:04:55.2]} 2...
Nc6 {[%clk 0:04:55.9]} 3. Nf3 {[%clk 0:04:53.9]} 3... Bg4 {[%clk 0:04:54]} 4.
Bb5 {[%clk 0:04:52.5]} 4... a6 {[%clk 0:04:51.3]} 5. Bxc6+ {[%clk 0:04:51.2]}
5... bxc6 {[%clk 0:04:51.2]} 6. O-O {[%clk 0:04:49.7]} 6... e5 {[%clk
0:04:50.3]} 7. fxe5 {[%clk 0:04:45.4]} 7... f6 {[%clk 0:04:40.8]} 8. exf6 {[%clk
0:04:43.4]} 8... Nxf6 {[%clk 0:04:39.9]} 9. Qe1 {[%clk 0:04:41.4]} 9... Bd6
{[%clk 0:04:38.6]} 10. h3 {[%clk 0:04:35.5]} 10... Bh5 {[%clk 0:04:37.2]} 11. d3
{[%clk 0:04:30.1]} 11... O-O {[%clk 0:04:35.6]} 12. Nc3 {[%clk 0:04:18.3]} 12...
Qe7 {[%clk 0:04:34.1]} 13. Bd2 {[%clk 0:04:04.5]} 13... Bxf3 {[%clk 0:04:30]}
14. Rxf3 {[%clk 0:04:01.9]} 14... Qe5 {[%clk 0:04:29.4]} 15. Kf2 {[%clk
0:03:41.3]} 15... Nh5 {[%clk 0:03:55.4]} 16. Rxf8+ {[%clk 0:03:36.4]} 16...
Rxf8+ {[%clk 0:03:53.6]} 17. Ke2 {[%clk 0:03:31.4]} 17... d4 {[%clk 0:03:51]}
18. Ne4 {[%clk 0:03:27.4]} 18... dxe3 {[%clk 0:03:40.8]} 19. Bxe3 {[%clk
0:03:21.2]} 19... Qxb2 {[%clk 0:03:32.7]} 20. Bd2 {[%clk 0:02:44.2]} 20... Qe5
{[%clk 0:02:48.8]} 21. Be3 {[%clk 0:02:25.8]} 21... Nf4+ {[%clk 0:02:26.1]} 22.
Bxf4 {[%clk 0:02:19.6]} 22... Qxf4 {[%clk 0:02:21.4]} 23. Qc3 {[%clk 0:02:07.3]}
23... Be5 {[%clk 0:02:13.4]} 24. Qc4+ {[%clk 0:02:03.5]} 24... Kh8 {[%clk
0:02:12.2]} 25. Rd1 {[%clk 0:01:44.9]} 25... Qf7 {[%clk 0:02:01.4]} 26. Qxc6
{[%clk 0:01:39.3]} 26... Qh5+ {[%clk 0:01:57.4]} 27. Kd2 {[%clk 0:01:35.4]}
27... Bf4+ {[%clk 0:01:51.3]} 28. Kc3 {[%clk 0:01:30.6]} 28... Qxd1 {[%clk
0:01:46.2]} 29. Qxc7 {[%clk 0:01:23.8]} 29... Bxc7 {[%clk 0:01:41.9]} 0-1

[Event "Live Chess"]
[Site "Chess.com"]
[Date "2023.05.21"]
[Round "-"]
[White "grillage"]
[Black "friarnator"]
[Result "0-1"]
[WhiteElo "1782"]
[BlackElo "2029"]
[TimeControl "300"]
[EndTime "8:34:32 PDT"]
[Termination "friarnator won by resignation"]

1. d4 {[%clk 0:04:59.3]} 1... Nf6 {[%clk 0:04:57.1]} 2. Nc3 {[%clk 0:04:57.4]}
2... e6 {[%clk 0:04:53.2]} 3. Bf4 {[%clk 0:04:53.8]} 3... d5 {[%clk 0:04:50.3]}
4. e3 {[%clk 0:04:50.9]} 4... Bb4 {[%clk 0:04:46.2]} 5. Bd3 {[%clk 0:04:41.6]}
5... O-O {[%clk 0:04:44.3]} 6. Ne2 {[%clk 0:04:39.6]} 6... c5 {[%clk 0:04:42.4]}
7. dxc5 {[%clk 0:04:38.5]} 7... Nbd7 {[%clk 0:04:40.4]} 8. c6 {[%clk 0:04:20.1]}
8... bxc6 {[%clk 0:04:38.3]} 9. a3 {[%clk 0:04:16.7]} 9... Bxc3+ {[%clk
0:04:35.7]} 10. Nxc3 {[%clk 0:04:15.8]} 10... e5 {[%clk 0:04:35.4]} 11. Bg5
{[%clk 0:04:14.2]} 11... e4 {[%clk 0:04:34.2]} 12. Be2 {[%clk 0:04:13.3]} 12...
h6 {[%clk 0:04:31.3]} 13. Bh4 {[%clk 0:04:11.8]} 13... Qb6 {[%clk 0:04:30.4]}
14. Qd2 {[%clk 0:04:00.2]} 14... Qxb2 {[%clk 0:04:18.5]} 15. O-O {[%clk
0:03:59.2]} 15... Qb6 {[%clk 0:04:14.4]} 16. Rab1 {[%clk 0:03:56.8]} 16... Qa5
{[%clk 0:04:10.4]} 17. Rb3 {[%clk 0:03:45.9]} 17... g5 {[%clk 0:04:03.4]} 18.
Bg3 {[%clk 0:03:36.7]} 18... Nc5 {[%clk 0:04:03]} 19. Rbb1 {[%clk 0:03:26.7]}
19... Na4 {[%clk 0:04:02.1]} 20. Rb3 {[%clk 0:03:20.2]} 20... Bd7 {[%clk
0:03:44.9]} 21. Qd4 {[%clk 0:03:15.6]} 21... Nxc3 {[%clk 0:03:32.8]} 22. Rxc3
{[%clk 0:03:05.2]} 22... Nh7 {[%clk 0:03:29]} 23. Bd6 {[%clk 0:02:43.8]} 23...
Rfe8 {[%clk 0:03:23.5]} 24. Bb4 {[%clk 0:02:42]} 24... Qd8 {[%clk 0:03:16.6]}
25. Bc5 {[%clk 0:02:37.5]} 25... Qf6 {[%clk 0:03:11.8]} 26. Qa4 {[%clk
0:02:28.4]} 26... Qxc3 {[%clk 0:03:07.5]} 27. Bd4 {[%clk 0:02:15.6]} 27... Qd2
{[%clk 0:03:01.5]} 28. Bh5 {[%clk 0:02:11.2]} 28... Nf8 {[%clk 0:02:50.3]} 29.
Rd1 {[%clk 0:02:07.2]} 29... c5 {[%clk 0:02:45]} 30. Rxd2 {[%clk 0:02:05.6]}
30... Bxa4 {[%clk 0:02:41.9]} 31. Bxc5 {[%clk 0:02:03.4]} 31... Ne6 {[%clk
0:02:41.2]} 32. Bb4 {[%clk 0:02:01.1]} 32... Rac8 {[%clk 0:02:35]} 33. c3 {[%clk
0:01:58.7]} 33... Nc7 {[%clk 0:02:25.9]} 0-1

[Event "Live Chess"]
[Site "Chess.com"]
[Date "2023.05.21"]
[Round "-"]
[White "HoarseyHorsey"]
[Black "Duke_of_Bebington"]
[Result "1-0"]
[WhiteElo "1465"]
[BlackElo "1557"]
[TimeControl "300"]
[EndTime "8:34:37 PDT"]
[Termination "HoarseyHorsey won by resignation"]

1. d4 {[%clk 0:04:58.7]} 1... d5 {[%clk 0:04:58.8]} 2. c4 {[%clk 0:04:58]} 2...
c6 {[%clk 0:04:57.5]} 3. cxd5 {[%clk 0:04:56.3]} 3... cxd5 {[%clk 0:04:56.3]} 4.
Bf4 {[%clk 0:04:55.9]} 4... Nc6 {[%clk 0:04:53.8]} 5. e3 {[%clk 0:04:55.4]} 5...
Bf5 {[%clk 0:04:52.6]} 6. Nf3 {[%clk 0:04:54.2]} 6... Nf6 {[%clk 0:04:51.8]} 7.
Nc3 {[%clk 0:04:52]} 7... e6 {[%clk 0:04:50.7]} 8. Qb3 {[%clk 0:04:51]} 8... Qd7
{[%clk 0:04:47.2]} 9. Bb5 {[%clk 0:04:47.9]} 9... a6 {[%clk 0:04:42.4]} 10. Ne5
{[%clk 0:04:46.6]} 10... Nxe5 {[%clk 0:04:40.3]} 11. Bxd7+ {[%clk 0:04:45.2]}
11... Nexd7 {[%clk 0:04:40.2]} 12. O-O {[%clk 0:04:42.1]} 12... b5 {[%clk
0:04:36.7]} 13. Ne2 {[%clk 0:04:38.1]} 13... Be7 {[%clk 0:04:36.1]} 14. Ng3
{[%clk 0:04:36.5]} 14... Bg6 {[%clk 0:04:34.3]} 15. Rac1 {[%clk 0:04:32.8]}
15... O-O {[%clk 0:04:32.6]} 16. Rc7 {[%clk 0:04:29.9]} 16... Bd8 {[%clk
0:04:27.2]} 17. Rc2 {[%clk 0:04:25.5]} 17... Bxc2 {[%clk 0:04:21]} 18. Qxc2
{[%clk 0:04:25.4]} 18... Ba5 {[%clk 0:04:14.5]} 19. Rc1 {[%clk 0:04:21.5]} 19...
Nb6 {[%clk 0:04:02.5]} 20. b3 {[%clk 0:04:19.6]} 20... Rac8 {[%clk 0:04:01.3]}
21. Qb2 {[%clk 0:04:17.9]} 21... Rxc1+ {[%clk 0:03:57.4]} 22. Qxc1 {[%clk
0:04:17.8]} 22... Ne4 {[%clk 0:03:56.5]} 23. Nxe4 {[%clk 0:04:15.8]} 23... dxe4
{[%clk 0:03:55.8]} 24. Qb1 {[%clk 0:04:08.2]} 24... f5 {[%clk 0:03:53.6]} 25. h4
{[%clk 0:04:02.4]} 25... Nd5 {[%clk 0:03:51.7]} 26. Be5 {[%clk 0:03:56.5]} 26...
Rc8 {[%clk 0:03:47.9]} 27. Qd1 {[%clk 0:03:32.4]} 27... Nc3 {[%clk 0:03:46]} 28.
Qh5 {[%clk 0:03:30.9]} 28... Nd5 {[%clk 0:03:20.8]} 29. Qg5 {[%clk 0:03:21.4]}
29... g6 {[%clk 0:03:15.1]} 30. h5 {[%clk 0:03:13]} 30... Bc7 {[%clk 0:03:00.9]}
31. Bxc7 {[%clk 0:02:45.9]} 31... Nxc7 {[%clk 0:03:00.8]} 32. hxg6 {[%clk
0:02:42.9]} 32... hxg6 {[%clk 0:02:56.8]} 33. Qxg6+ {[%clk 0:02:41.9]} 33... Kf8
{[%clk 0:02:55.6]} 34. Qf6+ {[%clk 0:02:29.8]} 34... Ke8 {[%clk 0:02:53.8]} 35.
f3 {[%clk 0:01:59.4]} 35... Nd5 {[%clk 0:02:47.4]} 36. Qxe6+ {[%clk 0:01:58.5]}
36... Ne7 {[%clk 0:02:45.2]} 37. fxe4 {[%clk 0:01:39]} 37... fxe4 {[%clk
0:02:43.9]} 38. Qxe4 {[%clk 0:01:35.9]} 38... Rc5 {[%clk 0:02:40.3]} 1-0

[Event "Live Chess"]
[Site "Chess.com"]
[Date "2023.05.21"]
[Round "-"]
[White "domrobson"]
[Black "slava_ukr"]
[Result "0-1"]
[WhiteElo "1805"]
[BlackElo "2347"]
[TimeControl "300"]
[EndTime "8:34:45 PDT"]
[Termination "slava_ukr won by resignation"]

1. d4 {[%clk 0:04:57.4]} 1... d5 {[%clk 0:04:58]} 2. c4 {[%clk 0:04:56.6]} 2...
e5 {[%clk 0:04:56.8]} 3. dxe5 {[%clk 0:04:55.3]} 3... d4 {[%clk 0:04:56.2]} 4.
Nf3 {[%clk 0:04:54.4]} 4... Nc6 {[%clk 0:04:55.6]} 5. a3 {[%clk 0:04:53.1]} 5...
Bg4 {[%clk 0:04:54.7]} 6. Nbd2 {[%clk 0:04:49.2]} 6... Qe7 {[%clk 0:04:53.9]} 7.
Nb3 {[%clk 0:04:46.3]} 7... O-O-O {[%clk 0:04:50.4]} 8. Bg5 {[%clk 0:04:42.6]}
8... f6 {[%clk 0:04:49]} 9. exf6 {[%clk 0:04:41.5]} 9... gxf6 {[%clk 0:04:47.6]}
10. Bf4 {[%clk 0:04:38.3]} 10... Bxf3 {[%clk 0:04:28.5]} 11. gxf3 {[%clk
0:04:35.9]} 11... Ne5 {[%clk 0:04:26.1]} 12. Bh3+ {[%clk 0:04:29.7]} 12... Kb8
{[%clk 0:04:24.7]} 13. Nxd4 {[%clk 0:04:24.9]} 13... Rxd4 {[%clk 0:04:22.3]} 14.
Qxd4 {[%clk 0:04:20.2]} 14... Nxf3+ {[%clk 0:04:21.3]} 0-1

[Event "Live Chess"]
[Site "Chess.com"]
[Date "2023.05.21"]
[Round "-"]
[White "WelshTiger"]
[Black "zdanevych"]
[Result "1-0"]
[WhiteElo "2321"]
[BlackElo "1462"]
[TimeControl "300"]
[EndTime "8:35:11 PDT"]
[Termination "WelshTiger won by resignation"]

1. e4 {[%clk 0:04:58.1]} 1... c5 {[%clk 0:04:58.9]} 2. Nf3 {[%clk 0:04:54.6]}
2... e6 {[%clk 0:04:58.2]} 3. b3 {[%clk 0:04:52.9]} 3... d5 {[%clk 0:04:57.5]}
4. exd5 {[%clk 0:04:51.5]} 4... exd5 {[%clk 0:04:56.7]} 5. d4 {[%clk 0:04:50.8]}
5... Be6 {[%clk 0:04:54.4]} 6. Bb5+ {[%clk 0:04:49.8]} 6... Nc6 {[%clk
0:04:53.2]} 7. O-O {[%clk 0:04:49]} 7... a6 {[%clk 0:04:52.3]} 8. Bxc6+ {[%clk
0:04:48]} 8... bxc6 {[%clk 0:04:52.2]} 9. Bb2 {[%clk 0:04:46.8]} 9... cxd4
{[%clk 0:04:49.8]} 10. Nxd4 {[%clk 0:04:46]} 10... Qd6 {[%clk 0:04:44.8]} 11.
Re1 {[%clk 0:04:42.9]} 11... Nf6 {[%clk 0:04:41.8]} 12. Nf5 {[%clk 0:04:37.3]}
12... Qd7 {[%clk 0:04:35.8]} 13. Nc3 {[%clk 0:04:14.4]} 13... g6 {[%clk
0:04:30]} 14. Nd4 {[%clk 0:04:09.6]} 14... Bg7 {[%clk 0:04:27.6]} 15. Na4 {[%clk
0:04:05.2]} 15... Qd6 {[%clk 0:04:15.5]} 16. c4 {[%clk 0:03:43]} 16... O-O
{[%clk 0:04:09.6]} 17. c5 {[%clk 0:03:39.3]} 17... Qc7 {[%clk 0:03:42.1]} 18.
Rxe6 {[%clk 0:03:27.4]} 18... fxe6 {[%clk 0:03:42]} 19. Nxe6 {[%clk 0:03:26.4]}
1-0

[Event "Live Chess"]
[Site "Chess.com"]
[Date "2023.05.21"]
[Round "-"]
[White "Dhaydon19"]
[Black "TheSmoulderingMaster"]
[Result "1-0"]
[WhiteElo "2689"]
[BlackElo "1659"]
[TimeControl "300"]
[EndTime "8:35:15 PDT"]
[Termination "Dhaydon19 won by resignation"]

1. d4 {[%clk 0:04:54.8]} 1... Nf6 {[%clk 0:04:58.8]} 2. Nf3 {[%clk 0:04:54.3]}
2... d6 {[%clk 0:04:57.8]} 3. g3 {[%clk 0:04:53.5]} 3... g6 {[%clk 0:04:57]} 4.
Bg2 {[%clk 0:04:52.8]} 4... Bg7 {[%clk 0:04:56.2]} 5. O-O {[%clk 0:04:52.5]}
5... O-O {[%clk 0:04:55.5]} 6. c4 {[%clk 0:04:52.1]} 6... c6 {[%clk 0:04:54.9]}
7. Nc3 {[%clk 0:04:51.4]} 7... Bg4 {[%clk 0:04:53.9]} 8. Qb3 {[%clk 0:04:50.1]}
8... Qc7 {[%clk 0:04:51.8]} 9. Bf4 {[%clk 0:04:48.3]} 9... Re8 {[%clk
0:04:48.7]} 10. c5 {[%clk 0:04:47.3]} 10... Bxf3 {[%clk 0:04:42]} 11. Bxf3
{[%clk 0:04:45.5]} 11... e5 {[%clk 0:04:40.7]} 12. cxd6 {[%clk 0:04:44.2]} 12...
Qxd6 {[%clk 0:04:37.2]} 13. dxe5 {[%clk 0:04:43.3]} 13... Qe7 {[%clk 0:04:31.9]}
14. exf6 {[%clk 0:04:41.9]} 1-0

[Event "Live Chess"]
[Site "Chess.com"]
[Date "2023.05.21"]
[Round "-"]
[White "EdenHazard8"]
[Black "DfNn"]
[Result "0-1"]
[WhiteElo "1924"]
[BlackElo "1560"]
[TimeControl "300"]
[EndTime "8:35:18 PDT"]
[Termination "DfNn won by checkmate"]

1. e4 {[%clk 0:04:58.9]} 1... e5 {[%clk 0:04:58.6]} 2. Nf3 {[%clk 0:04:58.1]}
2... Nc6 {[%clk 0:04:57.3]} 3. Bc4 {[%clk 0:04:57.4]} 3... Bc5 {[%clk
0:04:56.2]} 4. d3 {[%clk 0:04:56.2]} 4... Nf6 {[%clk 0:04:55.1]} 5. O-O {[%clk
0:04:52.9]} 5... d6 {[%clk 0:04:54.3]} 6. h3 {[%clk 0:04:51.9]} 6... O-O {[%clk
0:04:52.7]} 7. Bg5 {[%clk 0:04:49.7]} 7... Be6 {[%clk 0:04:51.1]} 8. Bb3 {[%clk
0:04:47.9]} 8... Qd7 {[%clk 0:04:46.6]} 9. Kh2 {[%clk 0:04:45.2]} 9... Kh8
{[%clk 0:04:45.5]} 10. Nc3 {[%clk 0:04:32.9]} 10... Nh5 {[%clk 0:04:43.2]} 11.
Nd5 {[%clk 0:04:30]} 11... Nf4 {[%clk 0:04:40.3]} 12. Nxf4 {[%clk 0:04:26.9]}
12... exf4 {[%clk 0:04:39.4]} 13. Bxf4 {[%clk 0:04:25.7]} 13... g5 {[%clk
0:04:35.9]} 14. Bxg5 {[%clk 0:04:24.5]} 14... Rg8 {[%clk 0:04:35.1]} 15. Bf6+
{[%clk 0:04:23.6]} 15... Rg7 {[%clk 0:04:33.3]} 16. Bxg7+ {[%clk 0:04:21.8]}
16... Kxg7 {[%clk 0:04:32.7]} 17. Nh4 {[%clk 0:04:21.4]} 17... Rg8 {[%clk
0:04:31.4]} 18. Qh5 {[%clk 0:04:06.5]} 18... Kh8 {[%clk 0:04:28]} 19. f4 {[%clk
0:04:05.3]} 19... Nd4 {[%clk 0:04:21.1]} 20. f5 {[%clk 0:04:03.8]} 20... Bxb3
{[%clk 0:04:18.1]} 21. axb3 {[%clk 0:04:03.7]} 21... Nxc2 {[%clk 0:04:17]} 22.
Rac1 {[%clk 0:03:58.3]} 22... Ne3 {[%clk 0:04:15.1]} 23. Rf3 {[%clk 0:03:53.8]}
23... Qb5 {[%clk 0:04:05.4]} 24. Ng6+ {[%clk 0:03:34.7]} 24... fxg6 {[%clk
0:04:02.3]} 25. fxg6 {[%clk 0:03:33.8]} 25... Rxg6 {[%clk 0:03:58.5]} 26. Rxe3
{[%clk 0:03:30.7]} 26... Qxb3 {[%clk 0:03:50.7]} 27. Rf3 {[%clk 0:03:28]} 27...
Qxb2 {[%clk 0:03:39.7]} 28. Rf8+ {[%clk 0:02:28.8]} 28... Kg7 {[%clk 0:03:36.9]}
29. Qf3 {[%clk 0:02:28.4]} 29... Qxc1 {[%clk 0:03:07.9]} 30. Qf7+ {[%clk
0:02:15]} 30... Kh6 {[%clk 0:03:04.5]} 31. Rh8 {[%clk 0:02:13.7]} 31... Qg1#
{[%clk 0:02:59.8]} 0-1